Workbook

Sheet Cover Sheet
B1: Registered User: | G1: Free Trial Version - Not For Commercial Use | AF1: © 2017 CivilWeb
B2: Your Logo / Company Details Here | G2: Project: | AF2: By:
G3: Calculation: | M3: Solid Slab Anaysis
AF4: Approved:
G5: Sheet Number: | M5: Cover Sheet | T5: Date:
H7: Although all care and attention has been taken to ensure that this program is accurate, CivilWeb gives no guarentee that it is error free. In no event will Civil Web accept any responsibility for any errors or omissions from the program or from the user of the program, or for any special, incedental or consequential damages whatsoever arising from use of this program.
H14: This program should only be used by a suitably qualified Civil or Structural Engineer, and suitable efforts should be taken to verify the results.
H18: Reverse-engineering or decompiling of this program is not allowed.
H20: This program is registered to a single user, and should not be used by any other.
H23: Registered User;
H24: Free Trial Version
H26: By using this program you confirm your understanding and agreement with the above terms and conditions.
H29: This program remains the property of CivilWeb.
H30: www.civilweb-spreadsheets.com
H32: Revision Schedule
H34: Rev | J34: Changes | Z34: Date
H35: 0 | J35: Original | Z35: 2017-06-01

Sheet Solid Slab Analysis
B1: Registered User: | G1: Free Trial Version - Not For Commercial Use | AF1: © 2017 CivilWeb
B2: Your Logo / Company Details Here | G2: Project: | AF2: By: | CL2: slabdims | CR2: Continuous
G3: Calculation: | M3: Solid Slab Analysis | CL3: lx | CN3: mm | CR3: Discontinuous
AF4: Approved: | CL4: ly | CN4: mm | CO4: largrsid | CU4: sharforc
G5: Sheet Number: | M5: 1 | T5: Date: | CR5: Simply Supported | CU5: 1 | CV5: 2 | CX5: 3 | CZ5: 4 | DB5: 5 | DD5: 6 | DF5: 7 | DH5: 8
CL6: edge x1 | CR6: Restrained | CU6: All 4 edges continuous | CV6: 1 short edge discount. | CX6: 1 long edge discont. | CZ6: 2 adjascent edges discont. | DB6: 2 short edges discont. | DD6: 2 long edges discont. | DF6: 3 edges discont. (1 long edge cont.) | DH6: 3 edges discont. (1 short edge cont.)
G7: Slab Details | R7: Loading Details | CF7: 0 | CG7: 0 | CL7: edge x2 | CU7: Continuous edge | CV7: Continuous edge | CX7: Continuous edge | CZ7: Continuous edge | DB7: Continuous edge | DD7: Continuous edge | DF7: Continuous edge | DH7: Continuous edge
G8: Width X | K8: 5000 | O8: mm | R8: Total UDL (Dead) | Z8: 25 | AC8: kN/m² | CF8: =K8 -> 5000 | CG8: =CG7 -> 0 | CL8: edge y1 | CT8: 1 | CU8: 0.33 | CV8: 0.36 | CX8: 0.36 | CZ8: 0.4 | DB8: 0.4 | DD8: 0 | DF8: 0.45 | DH8: 0
G9: Length Y | K9: 6000 | O9: mm | R9: Total UDL (Imposed) | Z9: 35 | AC9: kN/m² | CF9: =CF8 -> 5000 | CG9: =K9 -> 6000 | CL9: edge y2 | CT9: 1.1 | CU9: 0.36 | CV9: 0.39 | CX9: 0.4 | CZ9: 0.44 | DB9: 0.43 | DD9: 0 | DF9: 0.48 | DH9: 0
G10: X1 | K10: Discontinuous | R10: Factor of Safety Gk | Z10: 1.4 | CF10: =CF7 -> 0 | CG10: =CG9 -> 6000 | CT10: 1.2 | CU10: 0.39 | CV10: 0.42 | CX10: 0.44 | CZ10: 0.47 | DB10: 0.45 | DD10: 0 | DF10: 0.51 | DH10: 0
G11: X2 | K11: Continuous | R11: Factor of Safety Qk | Z11: 1.6 | CF11: =CF7 -> 0 | CG11: =CG7 -> 0 | CT11: 1.3 | CU11: 0.41 | CV11: 0.44 | CX11: 0.47 | CZ11: 0.5 | DB11: 0.47 | DD11: 0 | DF11: 0.53 | DH11: 0
G12: Y1 | K12: Continuous | CT12: 1.4 | CU12: 0.43 | CV12: 0.45 | CX12: 0.49 | CZ12: 0.52 | DB12: 0.48 | DD12: 0 | DF12: 0.55 | DH12: 0
G13: Y2 | K13: Discontinuous | R13: Slab Type | V13: Restrained | CF13: =((10000-MAX($CF$7:$CF$11))/2)+CF7 -> 2500 | CG13: =((10000-MAX($CG$7:$CG$11))/2)+CG7 -> 2000 | CT13: 1.5 | CU13: 0.45 | CV13: 0.47 | CX13: 0.51 | CZ13: 0.54 | DB13: 0.49 | DD13: 0 | DF13: 0.57 | DH13: 0
CF14: =((10000-MAX($CF$7:$CF$11))/2)+CF8 -> 7500 | CG14: =((10000-MAX($CG$7:$CG$11))/2)+CG8 -> 2000 | CT14: 1.75 | CU14: 0.48 | CV14: 0.5 | CX14: 0.55 | CZ14: 0.57 | DB14: 0.52 | DF14: 0.6
CF15: 7500 | CG15: 8000 | CT15: 2 | CU15: 0.5 | CV15: 0.52 | CX15: 0.59 | CZ15: 0.6 | DB15: 0.54 | DD15: 0 | DF15: 0.63 | DH15: 0
CF16: 2500 | CG16: 8000 | CL16: Typ | CM16: SimplySupportd | CN16: justsimplysupportdifchckd | CT16: Bvy | CU16: 0.33 | CV16: 0.36 | CX16: 0.36 | CZ16: 0.4 | DB16: 0 | DD16: 0.4 | DF16: 0 | DH16: 0.45
CF17: 2500 | CG17: 2000 | CQ17: ly/lx | CR17: =MAX(K8:N9)/MIN(K8:N9) -> 1.2 | CU17: 1 | CV17: 2 | CX17: 3 | CZ17: 4 | DB17: 5 | DD17: 6 | DF17: 7 | DH17: 8 | DI17: 9
CL18: Total factord UDL | CM18: =Z8*Z10+Z9*Z11 -> 91 | CT18: =CT15 -> 2 | CU18: =CU15 -> 0.5 | CV18: 0.52 | CX18: 0.59 | CZ18: 0.6 | DB18: 0.54 | DD18: 0 | DF18: 0.63 | DH18: 0
CF19: =(K8/2)+CF13 -> 5000 | CG19: =MIN(CG13:CG17) -> 2000 | CT19: =CT14 -> 1.75 | CU19: =CU14 -> 0.48 | CV19: 0.5 | CX19: 0.55 | CZ19: 0.57 | DB19: 0.52 | DD19: 0 | DF19: 0.6 | DH19: 0
CF20: =(K8/2)+CF13 -> 5000 | CG20: =MAX(CG13:CG17) -> 8000 | CQ20: span condition | CR20: =IF(SUM(CR21:CR22)=0,1,IF(SUM(CR21:CR22)=4,9,IF(AND(CR21=1,CR22=0),2,IF(AND(CR21=0,CR22=1),3,IF(AND(CR21=1,CR22=1),4,IF(AND(CR21=2,CR22=0),5,IF(AND(CR21=0,CR22=2),6,IF(AND(CR21=2,CR22=1),7,IF(AND(CR22=2,CR21=1),8,"x"))))))))) -> 4 | CT20: =CT13 -> 1.5 | CU20: =CU13 -> 0.45 | CV20: 0.47 | CX20: 0.51 | CZ20: 0.54 | DB20: 0.49 | DD20: 0 | DF20: 0.57 | DH20: 0
CL21: simplysupportd max momnts pr unit width | CQ21: lxdis | CR21: =COUNTIF(K10:P11,"Discontinuous") -> 1 | CT21: =CT12 -> 1.4 | CU21: =CU12 -> 0.43 | CV21: 0.45 | CX21: 0.49 | CZ21: 0.52 | DB21: 0.48 | DD21: 0 | DF21: 0.55 | DH21: 0
CF22: =MIN(CF13:CF17) -> 2500 | CG22: =(K9/2)+CG13 -> 5000 | CL22: msy | CM22: =(INDEX(CT91:CV98,MATCH(CR17,CT91:CT98,-1),3))*CM18*MIN(K8:N9)^2/1000000 -> 134.225 | CN22: kN/m | CQ22: lydis | CR22: =COUNTIF(K12:P13,"Discontinuous") -> 1 | CT22: =CT11 -> 1.3 | CU22: =CU11 -> 0.41 | CV22: 0.44 | CX22: 0.47 | CZ22: 0.5 | DB22: 0.47 | DD22: 0 | DF22: 0.53 | DH22: 0
CF23: =MAX(CF13:CF17) -> 7500 | CG23: =CG22 -> 5000 | CL23: msx | CM23: =(INDEX(CT91:CV98,MATCH(CR17,CT91:CT98,-1),2))*CM18*MIN(K8:N9)^2/1000000 -> 191.1 | CN23: kN/m | CT23: =CT10 -> 1.2 | CU23: =CU10 -> 0.39 | CV23: 0.42 | CX23: 0.44 | CZ23: 0.47 | DB23: 0.45 | DD23: 0 | DF23: 0.51 | DH23: 0
CT24: =CT9 -> 1.1 | CU24: =CU9 -> 0.36 | CV24: 0.39 | CX24: 0.4 | CZ24: 0.44 | DB24: 0.43 | DD24: 0 | DF24: 0.48 | DH24: 0
CE25: =CF26-CF25&"mm" -> 5000mm | CF25: =MIN(CF13:CF17) -> 2500 | CG25: 500 | CL25: rstraind max momnts pr unit width | CT25: =CT8 -> 1 | CU25: =CU8 -> 0.33 | CV25: 0.36 | CX25: 0.36 | CZ25: 0.4 | DB25: 0.4 | DD25: 0 | DF25: 0.45 | DH25: 0
CF26: =MAX(CF13:CF17) -> 7500 | CG26: =CG25 -> 500 | CL26: ngativ at continous dg(HOG) | CT26: =CT16 -> Bvy | CU26: =CU16 -> 0.33 | CV26: 0.36 | CX26: 0.36 | CZ26: 0.4 | DB26: 0 | DD26: 0.4 | DF26: 0 | DH26: 0.45
CL27: msy | CM27: =(HLOOKUP(CR20,CT43:DD52,10)*CM18*MIN(K8:N9)^2/1000000) -> 102.375 | CN27: kN/m
CE28: =CG29-CG28&"mm" -> 6000mm | CF28: 500 | CG28: =MIN(CG13:CG17) -> 2000 | CL28: msx | CM28: =(HLOOKUP(CR20,CT43:DD51,MATCH(CR17,CT43:CT51,-1),FALSE))*CM18*MIN(K8:N9)^2/1000000 -> 143.325 | CN28: kN/m
CF29: =CF28 -> 500 | CG29: =MAX(CG13:CG17) -> 8000
CL30: positiv at mid span(SAG) | CU30: 1 | CV30: 2 | CW30: 3 | CX30: 4 | CY30: 5 | CZ30: 6 | DA30: 7 | DB30: 8 | DC30: 9
CF31: =CF19 -> 5000 | CG31: =CG25 -> 500 | CL31: msy | CM31: =(HLOOKUP(CR20,CT69:DD78,10)*CM18*MIN(K8:N9)^2/1000000) -> 77.35 | CN31: kN/m | CU31: bndingmomnt ngativ atcontinuous dg
H32: Results | CF32: =CF28 -> 500 | CG32: =CG23 -> 5000 | CL32: msx | CM32: =(HLOOKUP(CR20,CT69:DD77,MATCH(CR17,CT69:CT77,-1),FALSE))*CM18*MIN(K8:N9)^2/1000000 -> 106.925 | CN32: kN/m | CU32: All 4 edges continuous | CV32: 1 short edge discount. | CW32: 1 long edge discont. | CX32: 2 adjascent edges discont. | CY32: 2 short edges discont. | CZ32: 2 long edges discont. | DA32: 3 edges discont. (1 long edge cont.) | DB32: 3 edges discont. (1 short edge cont.) | DC32: 4dgs discontinuous
CU33: Continuous edge | CV33: Continuous edge | CW33: Continuous edge | CX33: Continuous edge | CY33: Continuous edge | CZ33: Continuous edge | DA33: Continuous edge | DB33: Continuous edge
H34: =IF(V13="Simply Supported","Maximum Moment per Unit Width","Negative Moment at Continuous Edge") -> Negative Moment at Continuous Edge | CL34: dsignloadsonbams momnts | CT34: 1 | CU34: 0.031 | CV34: 0.039 | CW34: 0.039 | CX34: 0.047 | CY34: 0.046 | DA34: 0.057
H35: Msx | J35: =IF(V13="Simply Supported",CM23,CM28) -> 143.325 | M35: kNm/m | CL35: continuousdg | CT35: 1.1 | CU35: 0.037 | CV35: 0.044 | CW35: 0.049 | CX35: 0.056 | CY35: 0.05 | DA35: 0.065
H36: Msy | J36: =IF(V13="Simply Supported",CM22,CM27) -> 102.375 | M36: kNm/m | CL36: vsy | CM36: =(HLOOKUP(CR20,CT17:DI26,10)*CM18*MIN(K8:N9)/1000) -> 182 | CN36: kN/m | CT36: 1.2 | CU36: 0.042 | CV36: 0.048 | CW36: 0.056 | CX36: 0.063 | CY36: 0.054 | DA36: 0.071
H37: =IF(V13="Simply Supported","","Positive Moment at Mid Span") -> Positive Moment at Mid Span | CL37: vsx | CM37: =(HLOOKUP(CR20,CT17:DI25,MATCH(CR17,CT17:CT25,-1),FALSE))*CM18*MIN(K8:N9)/1000 -> 213.85 | CN37: kN/m | CT37: 1.3 | CU37: 0.046 | CV37: 0.052 | CW37: 0.062 | CX37: 0.069 | CY37: 0.057 | DA37: 0.076
H38: =IF(V13="Simply Supported","","Msx") -> Msx | J38: =IF(V13="Simply Supported","",CM32) -> 106.925 | M38: =IF(V13="Simply Supported","","kNm") -> kNm | CL38: add max bnding momnt | CT38: 1.4 | CU38: 0.05 | CV38: 0.055 | CW38: 0.068 | CX38: 0.074 | CY38: 0.06 | DA38: 0.081
H39: =IF(V13="Simply Supported","","Msy") -> Msy | J39: =IF(V13="Simply Supported","",CM31) -> 77.35 | M39: =IF(V13="Simply Supported","","kNm") -> kNm | CL39: add max shar forc | CT39: 1.5 | CU39: 0.053 | CV39: 0.058 | CW39: 0.073 | CX39: 0.078 | CY39: 0.062 | DA39: 0.084
CT40: 1.75 | CU40: 0.059 | CV40: 0.06 | CW40: 0.082 | CX40: 0.087 | CY40: 0.067 | DA40: 0.092
H41: Design Loads on Supporting Beams | CL41: discontinuousdg | CT41: 2 | CU41: 0.063 | CV41: 0.067 | CW41: 0.089 | CX41: 0.093 | CY41: 0.07 | DA41: 0.098
H42: Continuous Edges | Q42: Discontinuous Edges | CL42: vsy | CM42: =(HLOOKUP(CR20,CT113:DH122,10)*CM18*MIN(K8:N9)/1000) -> 118.3 | CN42: kN/m | CT42: Bvy | CU42: 0.032 | CV42: 0.037 | CW42: 0.037 | CX42: 0.045 | DB42: 0.058
H43: Vsx | J43: =IF(CM37=0,"",CM37) -> 213.85 | M43: kN/m | Q43: Vsx | S43: =IF(CM43=0,"",CM43) -> 141.05 | V43: kN/m | CL43: vsx | CM43: =(HLOOKUP(CR20,CT113:DD121,MATCH(CR17,CT113:CT121,-1),FALSE))*CM18*MIN(K8:N9)/1000 -> 141.05 | CN43: kN/m | CU43: 1 | CV43: 2 | CW43: 3 | CX43: 4 | CY43: 5 | CZ43: 6 | DA43: 7 | DB43: 8 | DC43: 9
H44: Vsy | J44: =IF(CM36=0,"",CM36) -> 182 | M44: kN/m | Q44: Vsy | S44: =IF(CM42=0,"",CM42) -> 118.3 | V44: kN/m | CL44: add max bnding momnt | CT44: =CT41 -> 2 | CU44: =CU41 -> 0.063 | CV44: 0.067 | CW44: 0.089 | CX44: 0.093 | CY44: 0.07 | CZ44: =CZ41 -> 0 | DA44: 0.098 | DB44: 0 | DC44: 0
CL45: add max shar forc | CT45: =CT40 -> 1.75 | CU45: =CU40 -> 0.059 | CV45: 0.06 | CW45: 0.082 | CX45: 0.087 | CY45: 0.067 | CZ45: =CZ40 -> 0 | DA45: 0.092 | DB45: 0 | DC45: 0
H46: Design Maximum Moment on Continuous Support Beams | CT46: =CT39 -> 1.5 | CU46: =CU39 -> 0.053 | CV46: 0.058 | CW46: 0.073 | CX46: 0.078 | CY46: 0.062 | CZ46: =CZ39 -> 0 | DA46: 0.084 | DB46: 0 | DC46: 0
H47: Mx | J47: =IF(CM36=0,"",CM49) -> 533.203125 | M47: kNm | CT47: =CT38 -> 1.4 | CU47: =CU38 -> 0.05 | CV47: 0.055 | CW47: 0.068 | CX47: 0.074 | CY47: 0.06 | CZ47: =CZ38 -> 0 | DA47: 0.081 | DB47: 0 | DC47: 0
H48: My | J48: =IF(CM37=0,"",CM51) -> 902.1796875 | M48: kNm | CL48: Vx | CM48: =((CM36*0.75*K8*0.001)/(2*K8*0.001))*(K8*0.001) -> 341.25 | CN48: kN | CT48: =CT37 -> 1.3 | CU48: =CU37 -> 0.046 | CV48: 0.052 | CW48: 0.062 | CX48: 0.069 | CY48: 0.057 | CZ48: =CZ37 -> 0 | DA48: 0.076 | DB48: 0 | DC48: 0
H49: Design Maximum Shear Force on Continuous Support Beams | CL49: Mx | CM49: =CM48*((0.125*K8*0.001)+(CM48/(2*CM36))) -> 533.203125 | CN49: kNm | CT49: =CT36 -> 1.2 | CU49: =CU36 -> 0.042 | CV49: 0.048 | CW49: 0.056 | CX49: 0.063 | CY49: 0.054 | CZ49: =CZ36 -> 0 | DA49: 0.071 | DB49: 0 | DC49: 0
H50: Vx | J50: =IF(CM48=0,"",CM48) -> 341.25 | M50: kN | CL50: Vy | CM50: =((CM37*0.75*K9*0.001)/(2*K9*0.001))*(K9*0.001) -> 481.1625 | CN50: kN | CT50: =CT35 -> 1.1 | CU50: =CU35 -> 0.037 | CV50: 0.044 | CW50: 0.049 | CX50: 0.056 | CY50: 0.05 | CZ50: =CZ35 -> 0 | DA50: 0.065 | DB50: 0 | DC50: 0
H51: Vy | J51: =IF(CM37=0,"",CM50) -> 481.1625 | M51: kN | CL51: My | CM51: =CM50*((0.125*K9*0.001)+(CM50/(2*CM37))) -> 902.1796875 | CN51: kNm | CT51: =CT34 -> 1 | CU51: =CU34 -> 0.031 | CV51: 0.039 | CW51: 0.039 | CX51: 0.047 | CY51: 0.046 | CZ51: =CZ34 -> 0 | DA51: 0.057 | DB51: 0 | DC51: 0
CT52: =CT42 -> Bvy | CU52: =CU42 -> 0.032 | CV52: 0.037 | CW52: 0.037 | CX52: 0.045 | CY52: 0 | CZ52: =CZ42 -> 0 | DA52: 0 | DB52: 0.058 | DC52: 0
CU56: 1 | CV56: 2 | CW56: 3 | CX56: 4 | CY56: 5 | CZ56: 6 | DA56: 7 | DB56: 8 | DC56: 9
CU57: bndingmomnt positiv atmidspan
CU58: All 4 edges continuous | CV58: 1 short edge discount. | CW58: 1 long edge discont. | CX58: 2 adjascent edges discont. | CY58: 2 short edges discont. | CZ58: 2 long edges discont. | DA58: 3 edges discont. (1 long edge cont.) | DB58: 3 edges discont. (1 short edge cont.) | DC58: 4dgs discontinuous
CU59: Continuous edge | CV59: Continuous edge | CW59: Continuous edge | CX59: Continuous edge | CY59: Continuous edge | CZ59: Continuous edge | DA59: Continuous edge | DB59: Continuous edge
CT60: 1 | CU60: 0.024 | CV60: 0.029 | CW60: 0.03 | CX60: 0.036 | CY60: 0.034 | CZ60: 0.034 | DA60: 0.043 | DB60: 0.042 | DC60: 0.055
CT61: 1.1 | CU61: 0.028 | CV61: 0.033 | CW61: 0.036 | CX61: 0.042 | CY61: 0.038 | CZ61: 0.046 | DA61: 0.048 | DB61: 0.054 | DC61: 0.065
CT62: 1.2 | CU62: 0.032 | CV62: 0.036 | CW62: 0.042 | CX62: 0.047 | CY62: 0.04 | CZ62: 0.056 | DA62: 0.053 | DB62: 0.063 | DC62: 0.074
CT63: 1.3 | CU63: 0.035 | CV63: 0.039 | CW63: 0.047 | CX63: 0.051 | CY63: 0.043 | CZ63: 0.065 | DA63: 0.057 | DB63: 0.071 | DC63: 0.081
CT64: 1.4 | CU64: 0.037 | CV64: 0.041 | CW64: 0.051 | CX64: 0.055 | CY64: 0.045 | CZ64: 0.072 | DA64: 0.06 | DB64: 0.078 | DC64: 0.087
CT65: 1.5 | CU65: 0.04 | CV65: 0.04 | CW65: 0.055 | CX65: 0.059 | CY65: 0.047 | CZ65: 0.078 | DA65: 0.063 | DB65: 0.084 | DC65: 0.092
CT66: 1.75 | CU66: 0.044 | CV66: 0.047 | CW66: 0.062 | CX66: 0.065 | CY66: 0.05 | CZ66: 0.091 | DA66: 0.069 | DB66: 0.096 | DC66: 0.103
CT67: 2 | CU67: 0.048 | CV67: 0.05 | CW67: 0.067 | CX67: 0.07 | CY67: 0.053 | CZ67: 0.1 | DA67: 0.074 | DB67: 0.105 | DC67: 0.111
CT68: Bvy | CU68: 0.024 | CV68: 0.028 | CW68: 0.028 | CX68: 0.034 | CY68: 0.034 | CZ68: 0.034 | DA68: 0.044 | DB68: 0.044 | DC68: 0.056
CU69: 1 | CV69: 2 | CW69: 3 | CX69: 4 | CY69: 5 | CZ69: 6 | DA69: 7 | DB69: 8 | DC69: 9
CT70: =CT67 -> 2 | CU70: =CU67 -> 0.048 | CV70: 0.05 | CW70: 0.067 | CX70: 0.07 | CY70: 0.053 | CZ70: 0.1 | DA70: 0.074 | DB70: 0.105 | DC70: 0.111
CT71: =CT66 -> 1.75 | CU71: =CU66 -> 0.044 | CV71: 0.047 | CW71: 0.062 | CX71: 0.065 | CY71: 0.05 | CZ71: 0.091 | DA71: 0.069 | DB71: 0.096 | DC71: 0.103
CT72: =CT65 -> 1.5 | CU72: =CU65 -> 0.04 | CV72: 0.04 | CW72: 0.055 | CX72: 0.059 | CY72: 0.047 | CZ72: 0.078 | DA72: 0.063 | DB72: 0.084 | DC72: 0.092
CT73: =CT64 -> 1.4 | CU73: =CU64 -> 0.037 | CV73: 0.041 | CW73: 0.051 | CX73: 0.055 | CY73: 0.045 | CZ73: 0.072 | DA73: 0.06 | DB73: 0.078 | DC73: 0.087
CT74: =CT63 -> 1.3 | CU74: =CU63 -> 0.035 | CV74: 0.039 | CW74: 0.047 | CX74: 0.051 | CY74: 0.043 | CZ74: 0.065 | DA74: 0.057 | DB74: 0.071 | DC74: 0.081
CT75: =CT62 -> 1.2 | CU75: =CU62 -> 0.032 | CV75: 0.036 | CW75: 0.042 | CX75: 0.047 | CY75: 0.04 | CZ75: 0.056 | DA75: 0.053 | DB75: 0.063 | DC75: 0.074
CT76: =CT61 -> 1.1 | CU76: =CU61 -> 0.028 | CV76: 0.033 | CW76: 0.036 | CX76: 0.042 | CY76: 0.038 | CZ76: 0.046 | DA76: 0.048 | DB76: 0.054 | DC76: 0.065
CT77: =CT60 -> 1 | CU77: =CU60 -> 0.024 | CV77: 0.029 | CW77: 0.03 | CX77: 0.036 | CY77: 0.034 | CZ77: 0.034 | DA77: 0.043 | DB77: 0.042 | DC77: 0.055
CT78: =CT68 -> Bvy | CU78: =CU68 -> 0.024 | CV78: 0.028 | CW78: 0.028 | CX78: 0.034 | CY78: 0.034 | CZ78: 0.034 | DA78: 0.044 | DB78: 0.044 | DC78: 0.056
CU80: asx | CV80: asy
CT81: 1 | CU81: 0.062 | CV81: 0.062
CT82: 1.1 | CU82: 0.074 | CV82: 0.061
CT83: 1.2 | CU83: 0.084 | CV83: 0.059
CT84: 1.3 | CU84: 0.093 | CV84: 0.055
CT85: 1.4 | CU85: 0.099 | CV85: 0.051
CT86: 1.5 | CU86: 0.104 | CV86: 0.046
CT87: 1.75 | CU87: 0.113 | CV87: 0.037
CT88: 2 | CU88: 0.118 | CV88: 0.029
CT91: =CT88 -> 2 | CU91: =CU88 -> 0.118 | CV91: 0.029
CT92: =CT87 -> 1.75 | CU92: =CU87 -> 0.113 | CV92: 0.037
CT93: =CT86 -> 1.5 | CU93: =CU86 -> 0.104 | CV93: 0.046
CT94: =CT85 -> 1.4 | CU94: =CU85 -> 0.099 | CV94: 0.051
CT95: =CT84 -> 1.3 | CU95: =CU84 -> 0.093 | CV95: 0.055
CT96: =CT83 -> 1.2 | CU96: =CU83 -> 0.084 | CV96: 0.059
CT97: =CT82 -> 1.1 | CU97: =CU82 -> 0.074 | CV97: 0.061
CT98: =CT81 -> 1 | CU98: =CU81 -> 0.062 | CV98: 0.062
CU101: 2 | CV101: 3 | CW101: 4 | CX101: 5 | CY101: 6 | CZ101: 7 | DA101: 8 | DB101: 9
CU102: 1 short edge discount. | CV102: 1 long edge discont. | CW102: 2 adjascent edges discont. | CX102: 2 short edges discont. | CY102: 2 long edges discont. | CZ102: 3 edges discont. (1 long edge cont.) | DA102: 3 edges discont. (1 short edge cont.) | DB102: All 4 edges discont.
CU103: Discontinuous edge | CV103: Discontinuous edge | CW103: Discontinuous edge | CX103: Discontinuous edge | CY103: Discontinuous edge | CZ103: Discontinuous edge | DA103: Discontinuous edge | DB103: Discontinuous edge
CT104: 1 | CU104: 0 | CV104: 0.24 | CW104: 0.26 | CX104: 0 | CY104: 0.26 | CZ104: 0.3 | DA104: 0.29 | DB104: 0.33
CT105: 1.1 | CU105: 0 | CV105: 0.27 | CW105: 0.29 | CX105: 0 | CY105: 0.3 | CZ105: 0.32 | DA105: 0.33 | DB105: 0.36
CT106: 1.2 | CU106: 0 | CV106: 0.29 | CW106: 0.31 | CX106: 0 | CY106: 0.33 | CZ106: 0.34 | DA106: 0.36 | DB106: 0.39
CT107: 1.3 | CU107: 0 | CV107: 0.31 | CW107: 0.33 | CX107: 0 | CY107: 0.36 | CZ107: 0.35 | DA107: 0.38 | DB107: 0.41
CT108: 1.4 | CU108: 0 | CV108: 0.32 | CW108: 0.34 | CX108: 0 | CY108: 0.38 | CZ108: 0.36 | DA108: 0.4 | DB108: 0.43
CT109: 1.5 | CU109: 0 | CV109: 0.34 | CW109: 0.35 | CX109: 0 | CY109: 0.4 | CZ109: 0.37 | DA109: 0.42 | DB109: 0.45
CT110: 1.75 | CV110: 0.36 | CW110: 0.38 | CY110: 0.44 | CZ110: 0.39 | DA110: 0.45 | DB110: 0.48
CT111: 2 | CU111: 0 | CV111: 0.38 | CW111: 0.4 | CX111: 0 | CY111: 0.47 | CZ111: 0.41 | DA111: 0.48 | DB111: 0.5
CT112: Bvy | CU112: 0.24 | CV112: 0 | CW112: 0.26 | CX112: 0.26 | CY112: 0 | CZ112: 0.29 | DA112: 0.3 | DB112: 0.33
CU113: 2 | CV113: 3 | CW113: 4 | CX113: 5 | CY113: 6 | CZ113: 7 | DA113: 8 | DB113: 9
CT114: =CT111 -> 2 | CU114: 0 | CV114: 0.38 | CW114: 0.4 | CX114: 0 | CY114: 0.47 | CZ114: 0.41 | DA114: 0.48 | DB114: =DB111 -> 0.5
CT115: =CT110 -> 1.75 | CU115: 0 | CV115: 0.36 | CW115: 0.38 | CX115: 0 | CY115: 0.44 | CZ115: 0.39 | DA115: 0.45 | DB115: =DB110 -> 0.48
CT116: =CT109 -> 1.5 | CU116: 0 | CV116: 0.34 | CW116: 0.35 | CX116: 0 | CY116: 0.4 | CZ116: 0.37 | DA116: 0.42 | DB116: =DB109 -> 0.45
CT117: =CT108 -> 1.4 | CU117: 0 | CV117: 0.32 | CW117: 0.34 | CX117: 0 | CY117: 0.38 | CZ117: 0.36 | DA117: 0.4 | DB117: =DB108 -> 0.43
CT118: =CT107 -> 1.3 | CU118: 0 | CV118: 0.31 | CW118: 0.33 | CX118: 0 | CY118: 0.36 | CZ118: 0.35 | DA118: 0.38 | DB118: =DB107 -> 0.41
CT119: =CT106 -> 1.2 | CU119: 0 | CV119: 0.29 | CW119: 0.31 | CX119: 0 | CY119: 0.33 | CZ119: 0.34 | DA119: 0.36 | DB119: =DB106 -> 0.39
CT120: =CT105 -> 1.1 | CU120: 0 | CV120: 0.27 | CW120: 0.29 | CX120: 0 | CY120: 0.3 | CZ120: 0.32 | DA120: 0.33 | DB120: =DB105 -> 0.36
CT121: =CT104 -> 1 | CU121: 0 | CV121: 0.24 | CW121: 0.26 | CX121: 0 | CY121: 0.26 | CZ121: 0.3 | DA121: 0.29 | DB121: =DB104 -> 0.33
CT122: =CT112 -> Bvy | CU122: 0.24 | CV122: 0 | CW122: 0.26 | CX122: 0.26 | CY122: 0 | CZ122: 0.29 | DA122: 0.3 | DB122: =DB112 -> 0.33
